fUST/lending_fUST_20250826
["ID","MTS","AMOUNT","RATE_DAILY","PERIOD"]
[381367403,1756156022887,400.0,0.00030495,2]
[381367404,1756156024082,1600.0,0.00030495,2]
[381367405,1756156026101,-383.87288031,0.00030496,2]
[381367406,1756156037122,-498.31447789,0.00030496,2]
[381367407,1756156049419,417.15472785,0.00028,10]
[381367408,1756156050099,-7210.38092046,0.00030496,2]
[381367409,1756156055144,166.957647,0.00013699,2]
[381367410,1756156055656,166.957647,0.00027397,2]
[381367411,1756156083549,400.0,0.00030495,2]
[381367412,1756156095024,1711.65885671,0.0002703,7]
[381367413,1756156095050,1446.50159602,0.0002703,7]
[381367414,1756156096047,1686.04997778,0.00030496,7]
[381367415,1756156173221,552.29275615,0.00031639,120]
[381367416,1756156192797,846.35830607,0.0003047,2]
[381367463,1756156232940,-400.0,0.00030496,2]
[381367465,1756156232950,-1600.0,0.00030496,2]
[381367467,1756156232959,-400.0,0.00030496,2]
[381367469,1756156232969,-400.0,0.00030496,2]
[381367471,1756156232978,-232.4766599,0.00030498,2]
[381367473,1756156232988,-400.0,0.00030519,2]
[381367475,1756156232997,-376.30788339,0.0003052,2]
[381367477,1756156233007,-160.0,0.0003052,2]
[381367479,1756156233018,-529.29072822,0.0003052,2]
[381367481,1756156233028,-844.86965257,0.0003052,2]
[381367483,1756156233037,-622.23263951,0.00031507,2]
[381367485,1756156233047,-195.85406489,0.00031507,2]
[381367487,1756156233056,-500.0,0.00031507,2]
[381367489,1756156233066,-500.0,0.00031507,2]
[381367491,1756156233076,-500.0,0.00031507,2]
[381367493,1756156233086,-500.0,0.00031507,2]
[381367497,1756156233096,-500.0,0.00031507,2]
[381367500,1756156233106,-500.0,0.00031507,2]
[381367503,1756156233116,-500.0,0.00031507,2]
[381367505,1756156233126,-44638.05749645,0.00031508,2]
[381367507,1756156233135,-523.41087506,0.00031508,2]
[381367509,1756156233147,-851.84442464,0.00031508,2]
[381367511,1756156233156,-1611.652954,0.000316,7]
[381367513,1756156233166,-428.7872058,0.00031691,30]
[381367515,1756156233175,-179.8215774,0.00032825,2]
[381367517,1756156233185,-388.0,0.00032851,3]
[381367519,1756156233195,-400.0,0.00032851,3]
[381367521,1756156233205,-400.0,0.00032851,3]
[381367523,1756156233214,-400.0,0.00032875,3]
[381367524,1756156233223,-1600.0,0.0003299,3]
[381367526,1756156233233,-247.908144,0.00033495,2]
[381367528,1756156233243,-179.69450857,0.00033732,11]
[381367530,1756156233253,-611.51233299,0.00034477,2]
[381367532,1756156233263,-3379.602032,0.00034646,2]
[381367534,1756156233274,-392.64,0.000358,7]
[381367536,1756156233283,-5731.90645308,0.00035956,2]
[381367538,1756156233293,-600.0,0.00036491,20]
[381367540,1756156233302,-238.96755778,0.00036898,2]
[381367542,1756156233311,-155.0,0.000372,120]
[381367544,1756156233321,-2658.04023669,0.00037594,2]
[381367546,1756156233331,-745.74916212,0.00037841,2]
[381367548,1756156233340,-2144.45086033,0.00037899,2]
[381367550,1756156233349,-500.0,0.00037967,2]
[381367553,1756156233361,-209.51943499,0.00037967,2]
[381367555,1756156233371,-206.76850988,0.00037967,2]
[381367557,1756156233380,-1298.73,0.0003797,10]
[381367559,1756156233390,-50144.5511833,0.0003798,3]
[381367561,1756156233400,-201.57649922,0.0003798,3]
[381367563,1756156233409,-232.4766599,0.0003798,3]
[381367565,1756156233418,-500.0,0.00037989,15]
[381367567,1756156233428,-500.0,0.00037989,15]
[381367569,1756156233437,-212.71406868,0.00037989,15]
[381367571,1756156233447,-500.0,0.00037989,15]
[381367573,1756156233456,-500.0,0.00037989,15]
[381367575,1756156233465,-500.0,0.00037989,15]
[381367577,1756156233474,-500.0,0.00037989,15]
[381367579,1756156233483,-500.0,0.00037989,15]
[381367581,1756156233493,-500.0,0.00037989,15]
[381367582,1756156233503,-500.0,0.00037989,15]
[381367584,1756156233512,-500.0,0.00037989,15]
[381367585,1756156233523,-500.0,0.00037989,15]
[381367586,1756156233533,-379.7605407,0.00037989,15]
[381367587,1756156233542,-500.0,0.00037989,15]
[381367588,1756156233551,-500.0,0.00037989,15]
[381367589,1756156233560,-500.0,0.00037989,15]
[381367590,1756156233570,-500.0,0.00037989,15]
[381367591,1756156233579,-229.42,0.00037989,120]
[381367592,1756156233589,-100000.0,0.0003799,2]
[381367593,1756156233599,-25072.2755916,0.00037998,3]
[381367594,1756156233608,-2144.45086031,0.00038124,2]
[381367595,1756156233617,-500.0,0.00038241,2]
[381367596,1756156233627,-2144.45086031,0.0003835,2]
[381367598,1756156233637,-600.0,0.00038355,7]
[381367600,1756156233646,-500.0,0.00038356,14]
[381367602,1756156233655,-300.0,0.00038356,120]
[381367604,1756156233670,-500.0,0.00038515,2]
[381367606,1756156233680,-2144.45086031,0.00038575,2]
[381367608,1756156233690,-199.0,0.000386,30]
[381367610,1756156233700,-500.0,0.0003863,14]
[381367612,1756156233710,-199.0,0.000387,30]
[381367613,1756156233720,-500.0,0.00038789,2]
[381367616,1756156233729,-3205.78823777,0.0003879,2]
[381367617,1756156233740,-1021.62,0.000388,30]
[381367619,1756156233750,-2144.45086031,0.000388,2]
[381367621,1756156233760,-409.0,0.00038826,2]
[381367622,1756156233771,-3205.78823777,0.00038845,2]
[381367623,1756156233780,-150.5,0.0003886,120]
[381367624,1756156233790,-150.5,0.0003887,120]
[381367625,1756156233800,-150.5,0.0003888,120]
[381367626,1756156233810,-160.0,0.0003888,3]
[381367627,1756156233820,-1241.47,0.00038889,120]
[381367628,1756156233829,-3024.159498,0.0003889,2]
[381367629,1756156233839,-175505.929141,0.0003889,3]
[381367630,1756156233849,-604.72949766,0.0003889,3]
[381367631,1756156233863,-27460.84200941,0.000389,2]
[381367632,1756156234230,-53971.29748832,0.000389,2]
[381367652,1756156238788,-1483.51677866,0.00031408,2]
[381367653,1756156238813,-500.0,0.00031507,2]
[381367654,1756156238823,-328.40236302,0.00031507,2]
[381367655,1756156238831,-199.0,0.00031591,30]
[381367656,1756156238842,-1483.51677865,0.00033169,2]
[381367657,1756156238852,-288567.86050227,0.000389,2]
[381367658,1756156238862,-10332.61,0.000389,14]
[381367659,1756156238871,-8609.9627162,0.000389,2]
[381367660,1756156238881,-173.30378635,0.000389,2]
[381367661,1756156238890,-3205.78823777,0.000389,2]
[381367662,1756156238900,-687.62764985,0.000389,2]
[381367663,1756156238910,-687.62764985,0.000389,2]
[381367664,1756156238925,-500.0,0.00038904,14]
[381367665,1756156238934,-534.70282207,0.00038973,5]
[381367666,1756156238943,-500.0,0.00038973,5]
[381367667,1756156238953,-500.0,0.00038973,5]
[381367668,1756156238962,-500.0,0.00038973,5]
[381367669,1756156238971,-547.76989051,0.00038973,5]
[381367670,1756156238980,-500.0,0.00038973,5]
[381367671,1756156238989,-500.0,0.00038973,5]
[381367672,1756156238998,-500.0,0.00038973,5]
[381367673,1756156239008,-500.0,0.00038973,5]
[381367674,1756156239017,-500.0,0.00038973,5]
[381367675,1756156239031,-500.0,0.00038973,5]
[381367676,1756156239040,-500.0,0.00038973,5]
[381367677,1756156239050,-500.0,0.00038973,5]
[381367678,1756156239059,-502.6290904,0.00038973,3]
[381367679,1756156239068,-500.0,0.00038973,5]
[381367680,1756156239077,-500.0,0.00038973,5]
[381367681,1756156239087,-500.0,0.00038973,5]
[381367682,1756156239096,-500.0,0.00038973,5]
[381367683,1756156239105,-604.72949766,0.0003899,3]
[381367684,1756156239114,-465104.23,0.00039,30]
[381367685,1756156239123,-15983.54,0.00039,14]
[381367686,1756156239132,-1012.21,0.00039,7]
[381367687,1756156239142,-51646.75,0.00039,30]
[381367688,1756156239151,-1158335.37,0.00039,30]
[381367689,1756156239160,-500.64224986,0.00039,5]
[381367690,1756156239169,-27332.99,0.00039,30]
[381367691,1756156239178,-151.0,0.00039,30]
[381367692,1756156239188,-151.0,0.00039,30]
[381367693,1756156239197,-151.0,0.00039,30]
[381367694,1756156239206,-151.0,0.00039,15]
[381367695,1756156239215,-151.0,0.00039,30]
[381367696,1756156239224,-151.0,0.00039,30]
[381367697,1756156239233,-151.0,0.00039,30]
[381367698,1756156239243,-151.0,0.00039,30]
[381367699,1756156239252,-151.0,0.00039,30]
[381367700,1756156239262,-151.0,0.00039,30]
[381367701,1756156239271,-151.0,0.00039,30]
[381367702,1756156239284,-151.0,0.00039,30]
[381367703,1756156239293,-151.0,0.00039,30]
[381367704,1756156239303,-151.529748,0.00039,30]
[381367705,1756156239312,-151.0,0.00039,30]
[381367706,1756156239320,-151.0,0.00039,30]
[381367707,1756156239330,-151.0,0.00039,30]
[381367708,1756156239339,-151.0,0.00039,30]
[381367709,1756156239347,-239.359865,0.00039,30]
[381367710,1756156239356,-160.0,0.00039,30]
[381367711,1756156239365,-151.0,0.00039,30]
[381367712,1756156239374,-151.0,0.00039,30]
[381367713,1756156239384,-151.0,0.00039,30]
[381367714,1756156239393,-844.86965257,0.00039,30]
[381367715,1756156239402,-151.0,0.00039,30]
[381367716,1756156239411,-151.0,0.00039,30]
[381367717,1756156239421,-151.0,0.00039,30]
[381367718,1756156239430,-151.0,0.00039,30]
[381367719,1756156239439,-151.0,0.00039,30]
[381367720,1756156239448,-151.0,0.00039,30]
[381367721,1756156239457,-529.29072822,0.00039,30]
[381367722,1756156239466,-151.0,0.00039,30]
[381367723,1756156239475,-232.4766599,0.00039,30]
[381367724,1756156239485,-151.0,0.00039,30]
[381367725,1756156239494,-151.0,0.00039,30]
[381367726,1756156239503,-151.0,0.00039,30]
[381367727,1756156239513,-151.0,0.00039,30]
[381367728,1756156239526,-151.551819,0.00039031,2]
[381367729,1756156239535,-500.0,0.00039063,2]
[381367730,1756156239544,-1021.62,0.00039073,31]
[381367731,1756156239553,-151.551819,0.00039074,2]
[381367732,1756156239562,-3379.602032,0.00039088,2]
[381367733,1756156239571,-392.64,0.000391,7]
[381367734,1756156239581,-600.0,0.00039177,7]
[381367735,1756156239590,-500.0,0.00039178,14]
[381367736,1756156239600,-199.0,0.00039252,120]
[381367737,1756156239609,-234256.42759593,0.000393,10]
[381367738,1756156239621,-8702.20000008,0.000393,10]
[381367739,1756156239636,-1316.39,0.000393,10]
[381367750,1756156240710,-175.23610583,0.00031507,2]
[381367751,1756156240721,-241.27504831,0.00031507,2]
[381367752,1756156240731,-266278.72066469,0.000393,10]
[381367753,1756156240741,-500.0,0.00039337,2]
[381367754,1756156240751,-1021.62,0.00039347,32]
[381367755,1756156240761,-199.0,0.00039352,120]
[381367756,1756156240770,-500.0,0.00039452,14]
[381367757,1756156240784,-500.0,0.00039521,5]
[381367758,1756156240794,-500.0,0.00039521,5]
[381367759,1756156240803,-506.49646671,0.00039611,2]
[381367760,1756156240812,-1021.62,0.00039621,33]
[381367761,1756156240823,-480.0,0.00039726,120]
[381367762,1756156240834,-500.0,0.00039726,14]
[381367763,1756156240843,-973.0,0.00039748,2]
[381367764,1756156240854,-2155.0,0.00039748,2]
[381367765,1756156240863,-637.0,0.00039748,2]
[381367766,1756156240873,-1021.62,0.00039895,34]
[381367767,1756156240882,-155.91627867,0.000399,120]
[381367768,1756156240894,-155.91627867,0.000399,120]
[381367769,1756156240903,-4000.0,0.00039971,4]
[381367770,1756156240913,-600.0,0.00039999,7]
[381367771,1756156240922,-500.0,0.0004,14]
[381367772,1756156240932,-500.0,0.0004,120]
[381367773,1756156240942,-500.0,0.0004,120]
[381367774,1756156240954,-500.0,0.0004,120]
[381367775,1756156240963,-500.0,0.0004,120]
[381367776,1756156240974,-206.05127883,0.0004,120]
[381367777,1756156240984,-720.0,0.0004014,30]
[381367778,1756156240994,-1021.62,0.00040169,35]
[381367779,1756156241004,-151.551819,0.00040241,20]
[381367780,1756156241013,-500.0,0.00040273,14]
[381367781,1756156241023,-10332.61,0.000403,14]
[381367782,1756156241035,-1021.62,0.00040443,36]
[381367783,1756156241045,-155.91627867,0.00040496,120]
[381367784,1756156241055,-1241.47,0.00040533,120]
[381367785,1756156241065,-500.0,0.00040547,14]
[381367786,1756156241075,-1012.21,0.000407,7]
[381367787,1756156241085,-392.64,0.000407,7]
[381367789,1756156241094,-1021.62,0.00040717,37]
[381367791,1756156241104,-600.0,0.00040821,7]
[381367793,1756156241113,-500.0,0.00040821,14]
[381367795,1756156241123,-1000.0,0.00040822,30]
[381367797,1756156241132,-151.0,0.00040822,30]
[381367799,1756156241142,-232.4766599,0.000409,7]
[381367801,1756156241151,-1021.62,0.00040991,38]
[381367803,1756156241161,-199.0,0.00040995,30]
[381367805,1756156241171,-1000.0,0.00040995,2]
[381367807,1756156241180,-200.0,0.00041,120]
[381367809,1756156241190,-200.0,0.00041,120]
[381367811,1756156241199,-500.0,0.00041073,5]
[381367812,1756156241209,-500.0,0.00041073,5]
[381367813,1756156241218,-500.0,0.00041073,5]
[381367815,1756156241228,-480.0,0.00041095,30]
[381367817,1756156241238,-480.0,0.00041095,30]
[381367819,1756156241248,-480.0,0.00041095,30]
[381367820,1756156241257,-480.0,0.00041095,30]
[381367821,1756156241266,-480.0,0.00041095,30]
[381367822,1756156241279,-480.0,0.00041095,30]
[381367823,1756156241288,-480.0,0.00041095,30]
[381367825,1756156241298,-480.0,0.00041095,30]
[381367827,1756156241307,-480.0,0.00041095,30]
[381367829,1756156241317,-480.0,0.00041095,30]
[381367831,1756156241327,-480.0,0.00041095,30]
[381367833,1756156241336,-258.72497932,0.00041095,30]
[381367835,1756156241345,-480.0,0.00041095,30]
[381367837,1756156241355,-480.0,0.00041095,30]
[381367839,1756156241365,-859.28,0.00041095,30]
[381367841,1756156241375,-1516.79,0.00041095,30]
[381367843,1756156241384,-480.0,0.00041095,30]
[381367845,1756156241394,-480.0,0.00041095,30]
[381367847,1756156241404,-480.0,0.00041095,30]
[381367849,1756156241413,-1041.52,0.00041095,30]
[381367851,1756156241425,-527.16118666,0.00041095,30]
[381367853,1756156241435,-480.0,0.00041095,30]
[381367855,1756156241444,-996.83,0.00041095,30]
[381367857,1756156241454,-2493.66,0.00041095,30]
[381367859,1756156241465,-560.72,0.00041095,30]
[381367861,1756156241475,-621.54,0.00041095,30]
[381367863,1756156241484,-480.0,0.00041095,30]
[381367865,1756156241494,-480.0,0.00041095,30]
[381367867,1756156241503,-622.36,0.00041095,30]
[381367869,1756156241513,-480.0,0.00041095,30]
[381367870,1756156241522,-480.0,0.00041095,30]
[381367872,1756156241536,-480.0,0.00041095,30]
[381367874,1756156241545,-480.0,0.00041095,30]
[381367876,1756156241555,-480.0,0.00041095,30]
[381367878,1756156241565,-480.0,0.00041095,30]
[381367881,1756156241574,-480.0,0.00041095,30]
[381367882,1756156241583,-480.0,0.00041095,30]
[381367884,1756156241592,-480.0,0.00041095,30]
[381367886,1756156241602,-480.0,0.00041095,30]
[381367888,1756156241612,-480.0,0.00041095,30]
[381367890,1756156241622,-491.96,0.00041095,30]
[381367892,1756156241631,-503.86,0.00041095,30]
[381367894,1756156241641,-510.59,0.00041095,30]
[381367896,1756156241651,-480.0,0.00041095,30]
[381367898,1756156241661,-480.0,0.00041095,30]
[381367900,1756156241671,-480.0,0.00041095,30]
[381367902,1756156241684,-566.76,0.00041095,30]
[381367904,1756156241694,-480.5627367,0.00041095,30]
[381367906,1756156241704,-480.0,0.00041095,30]
[381367908,1756156241715,-482.77,0.00041095,30]
[381367911,1756156241725,-1186.96,0.00041095,30]
[381367912,1756156241735,-480.0,0.00041095,30]
[381367914,1756156241745,-480.0,0.00041095,30]
[381367916,1756156241757,-770.69,0.00041095,30]
[381367919,1756156241767,-560.314939,0.00041095,30]
[381367921,1756156241778,-480.0,0.00041095,30]
[381367923,1756156241787,-480.0,0.00041095,30]
[381367925,1756156241797,-480.0,0.00041095,30]
[381367927,1756156241807,-480.0,0.00041095,30]
[381367929,1756156241816,-1031.5,0.00041095,30]
[381367931,1756156241826,-819.04,0.00041095,30]
[381367933,1756156241835,-426.11995527,0.00041095,30]
[381367935,1756156241845,-480.0,0.00041095,30]
[381367937,1756156241855,-621.89,0.00041095,30]
[381367939,1756156241865,-480.0,0.00041095,30]
[381367941,1756156241874,-480.0,0.00041095,30]
[381367943,1756156241883,-480.0,0.00041095,30]
[381367945,1756156241894,-480.0,0.00041095,30]
[381367947,1756156241903,-484.70939186,0.00041095,30]
[381367949,1756156241914,-310.30506866,0.00041095,30]
[381367951,1756156241923,-440.47135609,0.00041095,30]
[381367953,1756156241932,-480.0,0.00041095,30]
[381367955,1756156241941,-480.0,0.00041095,30]
[381367956,1756156241950,-480.0,0.00041095,30]
[381367959,1756156241960,-594.03433479,0.00041095,30]
[381367961,1756156241969,-480.0,0.00041095,30]
[381367963,1756156241979,-480.0,0.00041095,30]
[381367965,1756156241988,-480.0,0.00041095,30]
[381367967,1756156241997,-480.0,0.00041095,30]
[381367968,1756156242008,-480.0,0.00041095,30]
[381367970,1756156242018,-480.0,0.00041095,30]
[381367972,1756156242030,-480.0,0.00041095,30]
[381367974,1756156242039,-671.25,0.00041095,30]
[381367976,1756156242048,-480.0,0.00041095,30]
[381367978,1756156242058,-480.0,0.00041095,30]
[381367980,1756156242068,-480.0,0.00041095,30]
[381367982,1756156242077,-632.23,0.00041095,20]
[381367985,1756156242087,-480.0,0.00041095,30]
[381367987,1756156242097,-480.0,0.00041095,30]
[381367988,1756156242107,-500.2,0.00041095,30]
[381367991,1756156242116,-1487.88,0.00041095,30]
[381367992,1756156242126,-480.0,0.00041095,30]
[381367995,1756156242135,-875.58,0.00041095,30]
[381367997,1756156242147,-1060.14,0.00041095,30]
[381367999,1756156242158,-480.0,0.00041095,30]
[381368001,1756156242168,-480.0,0.00041095,30]
[381368003,1756156242178,-480.0,0.00041095,30]
[381368005,1756156242187,-480.0,0.00041095,30]
[381368007,1756156242197,-480.0,0.00041095,30]
[381368009,1756156242206,-480.0,0.00041095,30]
[381368011,1756156242215,-480.0,0.00041095,30]
[381368013,1756156242225,-480.0,0.00041095,30]
[381368015,1756156242234,-1045.02,0.00041095,30]
[381368017,1756156242244,-480.0,0.00041095,30]
[381368019,1756156242254,-480.0,0.00041095,30]
[381368021,1756156242263,-480.0,0.00041095,30]
[381368023,1756156242273,-911.56,0.00041095,30]
[381368025,1756156242284,-480.0,0.00041095,30]
[381368027,1756156242293,-480.0,0.00041095,30]
[381368029,1756156242303,-487.92,0.00041095,30]
[381368031,1756156242312,-480.0,0.00041095,30]
[381368033,1756156242323,-480.0,0.00041095,30]
[381368035,1756156242333,-480.0,0.00041095,30]
[381368037,1756156242342,-794.27,0.00041095,30]
[381368039,1756156242352,-480.0,0.00041095,30]
[381368041,1756156242362,-480.0,0.00041095,30]
[381368043,1756156242372,-480.0,0.00041095,30]
[381368045,1756156242381,-480.0,0.00041095,30]
[381368047,1756156242391,-480.0,0.00041095,30]
[381368049,1756156242400,-480.0,0.00041095,30]
[381368051,1756156242410,-480.0,0.00041095,30]
[381368053,1756156242420,-624.04681516,0.00041095,30]
[381368055,1756156242429,-843.01,0.00041095,30]
[381368057,1756156242440,-480.0,0.00041095,30]
[381368059,1756156242450,-480.0,0.00041095,30]
[381368060,1756156242460,-2422.59,0.00041095,30]
[381368062,1756156242470,-663.53,0.00041095,30]
[381368064,1756156242479,-480.0,0.00041095,30]
[381368065,1756156242488,-480.0,0.00041095,30]
[381368067,1756156242497,-256.7,0.00041095,30]
[381368068,1756156242507,-480.0,0.00041095,30]
[381368069,1756156242517,-480.000001,0.00041095,30]
[381368070,1756156242528,-480.0,0.00041095,30]
[381368071,1756156242538,-480.0,0.00041095,30]
[381368072,1756156242547,-480.0,0.00041095,30]
[381368073,1756156242557,-480.0,0.00041095,30]
[381368074,1756156242567,-480.0,0.00041095,30]
[381368075,1756156242577,-480.0,0.00041095,30]
[381368076,1756156242587,-480.0,0.00041095,30]
[381368077,1756156242597,-480.0,0.00041095,30]
[381368078,1756156242607,-794.17,0.00041095,30]
[381368079,1756156242616,-480.0,0.00041095,30]
[381368080,1756156242625,-480.0,0.00041095,30]
[381368081,1756156242635,-480.0,0.00041095,30]
[381368082,1756156242646,-480.0,0.00041095,30]
[381368083,1756156242655,-480.0,0.00041095,30]
[381368084,1756156242667,-480.0,0.00041095,30]
[381368085,1756156242680,-481.8981767,0.00041095,30]
[381368086,1756156242690,-480.0,0.00041095,30]
[381368087,1756156242701,-1990.18,0.00041095,30]
[381368088,1756156242712,-480.0,0.00041095,30]
[381368089,1756156242724,-811.93,0.00041095,30]
[381368090,1756156242734,-480.0,0.00041095,30]
[381368091,1756156242744,-1649.64,0.00041095,30]
[381368092,1756156242757,-2573.47,0.00041095,30]
[381368093,1756156242769,-480.0,0.00041095,5]
[381368094,1756156242782,-1899.91,0.00041095,30]
[381368095,1756156242791,-480.0,0.00041095,30]
[381368096,1756156242801,-843.61,0.00041095,30]
[381368097,1756156242810,-480.0,0.00041095,30]
[381368098,1756156242820,-480.0,0.00041095,30]
[381368099,1756156242829,-520.46,0.00041095,30]
[381368100,1756156242840,-480.0,0.00041095,30]
[381368101,1756156242849,-480.0,0.00041095,30]
[381368102,1756156242859,-480.0,0.00041095,30]
[381368103,1756156242869,-480.0,0.00041095,30]
[381368104,1756156242879,-859.94,0.00041095,30]
[381368105,1756156242889,-504.66,0.00041095,30]
[381368106,1756156242898,-480.0,0.00041095,30]
[381368107,1756156242908,-480.0,0.00041095,30]
[381368108,1756156242917,-2365.89,0.00041095,30]
[381368109,1756156242928,-635.91,0.00041095,30]
[381368110,1756156242938,-480.0,0.00041095,2]
[381368111,1756156242947,-203.98991008,0.00041095,30]
[381368112,1756156242958,-2046.48,0.00041095,30]
[381368113,1756156242967,-1656.37,0.00041095,30]
[381368114,1756156242977,-480.0,0.00041095,30]
[381368115,1756156242987,-215.40223107,0.00041095,30]
[381368116,1756156242996,-480.0,0.00041095,30]
[381368117,1756156243006,-480.0,0.00041095,30]
[381368118,1756156243016,-480.0,0.00041095,30]
[381368119,1756156243026,-480.0,0.00041095,30]
[381368120,1756156243037,-645.44,0.00041095,30]
[381368121,1756156243047,-480.0,0.00041095,30]
[381368122,1756156243057,-151.0,0.00041095,30]
[381368123,1756156243066,-480.0,0.00041095,30]
[381368124,1756156243076,-768.19,0.00041095,30]
[381368125,1756156243086,-480.0,0.00041095,30]
[381368126,1756156243095,-480.0,0.00041095,30]
[381368127,1756156243105,-151.0,0.00041095,30]
[381368128,1756156243115,-347.14759105,0.00041095,30]
[381368129,1756156243125,-151.0,0.00041095,15]
[381368130,1756156243134,-480.0,0.00041095,30]
[381368131,1756156243144,-480.0,0.00041095,30]
[381368132,1756156243154,-480.0,0.00041095,30]
[381368133,1756156243163,-528.91,0.00041095,30]
[381368134,1756156243174,-769.34,0.00041095,30]
[381368135,1756156243184,-480.0,0.00041095,30]
[381368136,1756156243194,-831.43,0.00041095,30]
[381368137,1756156243204,-480.0,0.00041095,30]
[381368138,1756156243214,-607.19,0.00041095,30]
[381368139,1756156243223,-480.0,0.00041095,30]
[381368140,1756156243234,-480.0,0.00041095,30]
[381368141,1756156243244,-480.0,0.00041095,30]
[381368142,1756156243254,-480.0,0.00041095,30]
[381368143,1756156243264,-480.0,0.00041095,30]
[381368144,1756156243273,-480.0,0.00041095,30]
[381368145,1756156243286,-585.98,0.00041095,30]
[381368146,1756156243296,-480.0,0.00041095,30]
[381368147,1756156243306,-480.0,0.00041095,30]
[381368148,1756156243315,-713.0,0.00041095,30]
[381368149,1756156243325,-898.14,0.00041095,30]
[381368150,1756156243335,-480.0,0.00041095,30]
[381368151,1756156243344,-480.0,0.00041095,30]
[381368152,1756156243353,-808.76,0.00041095,30]
[381368153,1756156243363,-480.0,0.00041095,30]
[381368154,1756156243372,-480.0,0.00041095,30]
[381368155,1756156243382,-480.0,0.00041095,30]
[381368156,1756156243391,-480.0,0.00041095,30]
[381368157,1756156243400,-1768.5,0.00041095,30]
[381368158,1756156243409,-3117.79,0.00041095,30]
[381368159,1756156243419,-480.0,0.00041095,30]
[381368160,1756156243428,-480.0,0.00041095,30]
[381368161,1756156243437,-1381.53,0.00041095,30]
[381368162,1756156243446,-480.0,0.00041095,30]
[381368163,1756156243455,-578.13,0.00041095,30]
[381368164,1756156243465,-162.77609175,0.00041095,30]
[381368165,1756156243474,-2090.00416585,0.00041095,30]
[381368207,1756156244213,-708.70583415,0.00041095,30]
[381368209,1756156244223,-480.0,0.00041095,30]
[381368211,1756156244233,-596.69,0.00041095,30]
[381368213,1756156244242,-994.94,0.00041095,30]
[381368215,1756156244252,-151.0,0.00041095,30]
[381368217,1756156244261,-480.0,0.00041095,30]
[381368219,1756156244271,-1139.57,0.00041095,30]
[381368221,1756156244281,-480.0,0.00041095,30]
[381368223,1756156244290,-151.0,0.00041095,30]
[381368225,1756156244299,-480.0,0.00041095,30]
[381368227,1756156244309,-1861.4,0.00041095,30]
[381368229,1756156244319,-480.0,0.00041095,30]
[381368231,1756156244328,-579.34,0.00041095,30]
[381368233,1756156244338,-480.0,0.00041095,30]
[381368235,1756156244347,-1189.37,0.00041095,30]
[381368237,1756156244356,-480.0,0.00041095,30]
[381368240,1756156244366,-480.0,0.00041095,30]
[381368243,1756156244375,-480.0,0.00041095,30]
[381368246,1756156244385,-541.6,0.00041095,30]
[381368250,1756156244395,-480.0,0.00041095,30]
[381368253,1756156244404,-480.0,0.00041095,30]
[381368257,1756156244414,-480.0,0.00041095,30]